[Event "2nd Cambridge Open 2024"]
[Site "Cambridge"]
[Date "2024.02.22"]
[Round "5.15"]
[White "Bradbury, Neil H"]
[Black "Jermy, Jaden"]
[Result "1/2-1/2"]
[ECO "E05"]
[WhiteElo "2217"]
[BlackElo "1968"]
[Annotator "RC"]
[PlyCount "77"]
[EventDate "2024.02.18"]
[EventType "swiss"]
[EventCountry "ENG"]
[SourceTitle "playchess.com"]
[Source "ChessBase"]
[SourceQuality "1"]
[TimeControl "5400+30"]

1. d4 {[%emt 0:01:05]} Nf6 {[%emt 0:00:30]} 2. c4 {[%emt 0:00:10]} e6 {[%emt 0:00:38]} 3. Nf3 {[%emt 0:00:13]} d5 {[%emt 0:00:45]} 4. g3 {[%emt 0:00:15]} Be7 {[%emt 0:01:40]} 5. Bg2 {[%emt 0:00:11]} O-O {[%emt 0:00:20]} 6. O-O {[%emt 0:00:07]} dxc4 {[%emt 0:00:45]} 7. Ne5 {[%emt 0:04:53]} Nc6 {[%emt 0:05:04]} 8. Nxc6 {[%emt 0:07:50]} bxc6 {[%emt 0:00:03]} 9. Nc3 {[%emt 0:01:32]} Nd5 {[%emt 0:04:50]} 10. e4 {[%emt 0:08:31]} Nb4 {[%emt 0:06:25]} 11. Be3 {[%emt 0:00:35]} Rb8 {[%emt 0:06:02]} 12. Rb1 {[%emt 0:06:11]} Ba6 {[%emt 0:03:15]} 13. Qd2 {[%emt 0:05:20]} Nd3 {[%emt 0:07:11]} 14. Rfd1 {[%emt 0:00:25]} c5 {[%emt 0:00:58]} 15. dxc5 {[%emt 0:11:45]} Bxc5 {[%emt 0:04:17]} 16. Bf1 {[%emt 0:06:42]} Qe7 {[%emt 0:04:23]} 17. b3 {[%emt 0:15:02]} Bb4 {[%emt 0:08:29]} 18. Qc2 {[%emt 0:05:12]} Bc5 {[%emt 0:07:15]} 19. Bxc5 {[%emt 0:07:27]} Qxc5 {[%emt 0:00:46]} 20. Na4 {[%emt 0:01:14]} Qa5 {[%emt 0:03:33]} 21. Bxd3 {[%emt 0:00:23]} cxd3 {[%emt 0:00:19]} 22. Qc5 {[%emt 0:00:06]} Qb4 {[%emt 0:06:32]} 23. Qxb4 {[%emt 0:04:22]} Rxb4 {[%emt 0:00:02]} 24. Nc5 {[%emt 0:00:09]} Bb5 {[%emt 0:00:41]} 25. a4 {[%emt 0:03:14]} Bc6 {[%emt 0:00:33]} 26. f3 {[%emt 0:00:56]} Rd8 {[%emt 0:02:34]} 27. Rxd3 {[%emt 0:00:51]} Rxd3 {[%emt 0:01:43]} 28. Nxd3 {[%emt 0:00:02]} Rb8 {[%emt 0:00:14]} 29. Nc5 {[%emt 0:00:37]} f5 {[%emt 0:02:35]} 30. Kf2 {[%emt 0:03:16]} fxe4 {[%emt 0:00:39]} 31. fxe4 {[%emt 0:00:02]} Rb4 {[%emt 0:01:21]} 32. Ke3 {[%emt 0:00:10]} Kf7 {[%emt 0:00:49]} 33. Rc1 {[%emt 0:03:16]} e5 {[%emt 0:01:45]} 34. Rc3 {[%emt 0:00:57]} Ke7 {[%emt 0:00:44]} 35. Rd3 {[%emt 0:02:34]} a5 {[%emt 0:00:54]} 36. Rd2 {[%emt 0:00:43]} g5 {[%emt 0:00:50]} 37. h4 {[%emt 0:00:53]} g4 {[%emt 0:00:29]} 38. Rd3 {[%emt 0:00:14]} h5 {[%emt 0:00:45]} 39. Rd2 {[%emt 0:01:05]} 1/2-1/2

[Event "2nd Cambridge Open 2024"]
[Site "Cambridge"]
[Date "2024.02.21"]
[Round "5.16"]
[White "Sivanandan, Bodhana"]
[Black "Karamsetty, Jeevan"]
[Result "1/2-1/2"]
[ECO "C41"]
[WhiteElo "1856"]
[BlackElo "2211"]
[Annotator "RC"]
[PlyCount "96"]
[EventDate "2024.02.18"]
[EventType "swiss"]
[EventCountry "ENG"]
[SourceTitle "playchess.com"]
[Source "ChessBase"]
[SourceQuality "1"]
[TimeControl "5400+30"]

1. e4 {[%emt 0:08:31]} e5 {[%emt 0:00:14]} 2. Nf3 {[%emt 0:00:14]} d6 {[%emt 0:00:08]} 3. d4 {[%emt 0:00:18]} exd4 {[%emt 0:00:06]} 4. Nxd4 {[%emt 0:00:13]} Nf6 {[%emt 0:00:06]} 5. Nc3 {[%emt 0:00:40]} Be7 {[%emt 0:00:07]} 6. Be2 {[%emt 0:01:53]} O-O {[%emt 0:00:13]} 7. O-O {[%emt 0:00:26]} Re8 {[%emt 0:00:18]} 8. Re1 {[%emt 0:01:57]} c6 {[%emt 0:05:26]} 9. Bf4 {[%emt 0:04:34]} Bf8 {[%emt 0:03:11]} 10. Bf1 {[%emt 0:06:28]} Nbd7 {[%emt 0:06:35]} 11. Qd2 {[%emt 0:06:54]} Ne5 {[%emt 0:05:27]} 12. Rad1 {[%emt 0:01:42]} Ng6 {[%emt 0:01:36]} 13. Bg3 {[%emt 0:04:15]} Nh5 {[%emt 0:09:32]} 14. Nf5 {[%emt 0:08:42]} Nxg3 {[%emt 0:00:54]} 15. Nxg3 {[%emt 0:00:35]} Qf6 {[%emt 0:06:24]} 16. a4 {[%emt 0:08:39]} Bg4 {[%emt 0:04:36]} 17. Be2 {[%emt 0:01:10]} Bxe2 {[%emt 0:01:45]} 18. Rxe2 {[%emt 0:01:28]} b6 {[%emt 0:08:07]} 19. h3 {[%emt 0:08:27]} Rad8 {[%emt 0:01:16]} 20. Qe1 {[%emt 0:02:30]} Re5 {[%emt 0:06:08]} 21. Re3 {[%emt 0:03:22]} Rde8 {[%emt 0:04:18]} 22. Qd2 {[%emt 0:01:36]} Nh4 {[%emt 0:04:53]} 23. Rd3 {[%emt 0:01:57]} Ng6 {[%emt 0:06:03]} 24. Rf3 {[%emt 0:01:09]} Qe6 {[%emt 0:01:45]} 25. Nf5 {[%emt 0:00:43]} Rd8 {[%emt 0:02:56]} 26. Rd3 {[%emt 0:01:36]} d5 {[%emt 0:01:02]} 27. Nd4 {[%emt 0:00:15]} Qc8 {[%emt 0:05:55]} 28. exd5 {[%emt 0:00:42]} cxd5 {[%emt 0:02:09]} 29. Nf3 {[%emt 0:01:04]} Re6 {[%emt 0:00:54]} 30. Nxd5 {[%emt 0:04:29]} Red6 {[%emt 0:01:10]} 31. Nc3 {[%emt 0:01:17]} h6 {[%emt 0:00:58]} 32. Ne4 {[%emt 0:01:22]} Rxd3 {[%emt 0:00:15]} 33. cxd3 {[%emt 0:00:08]} Qc6 {[%emt 0:01:03]} 34. b3 {[%emt 0:01:34]} Qd5 {[%emt 0:00:26]} 35. Qc2 {[%emt 0:04:24]} Nf4 {[%emt 0:00:13]} 36. d4 {[%emt 0:01:20]} Qh5 {[%emt 0:01:28]} 37. Ng3 {[%emt 0:01:06]} Qd5 {[%emt 0:01:16]} 38. Kh2 {[%emt 0:01:45]} Bd6 {[%emt 0:02:22]} 39. Qc4 {[%emt 0:01:16]} Qb7 {[%emt 0:01:30]} 40. d5 {[%emt 0:02:38]} Nxd5 {[%emt 0:00:43]} 41. Kh1 {[%emt 0:00:34]} Bxg3 {[%emt 0:03:06]} 42. fxg3 {[%emt 0:00:09]} Qa8 {[%emt 0:01:24]} 43. Ne5 {[%emt 0:01:40]} Rd6 {[%emt 0:00:58]} 44. Qe4 {[%emt 0:01:26]} Qd8 {[%emt 0:00:49]} 45. Nc4 {[%emt 0:00:55]} Rd7 {[%emt 0:00:11]} 46. Ne5 {[%emt 0:00:06]} Rd6 {[%emt 0:01:01]} 47. Nc4 {[%emt 0:00:06]} Rd7 {[%emt 0:00:42]} 48. Ne5 {[%emt 0:00:24]} Rd6 {[%emt 0:00:56]} 1/2-1/2

[Event "2nd Cambridge Open 2024"]
[Site "Cambridge"]
[Date "2024.02.21"]
[Round "5.17"]
[White "Nawalaniec, Adam"]
[Black "Sowray, Peter J"]
[Result "1/2-1/2"]
[ECO "C45"]
[WhiteElo "1876"]
[BlackElo "2169"]
[Annotator "RC"]
[PlyCount "63"]
[EventDate "2024.02.18"]
[EventType "swiss"]
[EventCountry "ENG"]
[SourceTitle "playchess.com"]
[Source "ChessBase"]
[SourceQuality "1"]
[TimeControl "5400+30"]

1. e4 {[%emt 0:00:02]} e5 {[%emt 0:00:08]} 2. Nf3 {[%emt 0:00:06]} Nc6 {[%emt 0:00:06]} 3. d4 {[%emt 0:00:03]} exd4 {[%emt 0:00:10]} 4. Nxd4 {[%emt 0:00:11]} Nf6 {[%emt 0:00:10]} 5. Nxc6 {[%emt 0:00:06]} bxc6 {[%emt 0:00:08]} 6. Bd3 {[%emt 0:00:03]} d5 {[%emt 0:03:02]} 7. Qe2 {[%emt 0:00:05]} Be7 {[%emt 0:05:22]} 8. O-O {[%emt 0:05:39]} O-O {[%emt 0:07:06]} 9. e5 {[%emt 0:08:41]} Nd7 {[%emt 0:00:22]} 10. c3 {[%emt 0:07:27]} Nc5 {[%emt 0:01:42]} 11. Be3 {[%emt 0:05:21]} Nxd3 {[%emt 0:01:57]} 12. Qxd3 {[%emt 0:00:07]} a5 {[%emt 0:00:53]} 13. Rd1 {[%emt 0:03:29]} Bg4 {[%emt 0:08:06]} 14. f3 {[%emt 0:05:06]} Be6 {[%emt 0:12:03]} 15. Nd2 {[%emt 0:06:32]} c5 {[%emt 0:05:19]} 16. f4 {[%emt 0:03:28]} c4 {[%emt 0:02:59]} 17. Qf1 {[%emt 0:09:16]} Qc8 {[%emt 0:00:51]} 18. Nf3 {[%emt 0:01:04]} c5 {[%emt 0:03:29]} 19. Ng5 {[%emt 0:08:18]} h6 {[%emt 0:06:15]} 20. Nxe6 {[%emt 0:00:19]} fxe6 {[%emt 0:00:04]} 21. b3 {[%emt 0:05:02]} cxb3 {[%emt 0:03:43]} 22. axb3 {[%emt 0:00:01]} Qa6 {[%emt 0:01:10]} 23. Qxa6 {[%emt 0:02:18]} Rxa6 {[%emt 0:00:02]} 24. c4 {[%emt 0:06:43]} d4 {[%emt 0:02:22]} 25. Bd2 {[%emt 0:00:26]} Rb8 {[%emt 0:00:46]} 26. Ra3 {[%emt 0:01:00]} Rab6 {[%emt 0:00:23]} 27. Rb1 {[%emt 0:00:45]} a4 {[%emt 0:00:19]} 28. Rxa4 {[%emt 0:00:12]} Rxb3 {[%emt 0:00:08]} 29. Rxb3 {[%emt 0:00:02]} Rxb3 {[%emt 0:00:09]} 30. Kf2 {[%emt 0:00:45]} Kf7 {[%emt 0:03:31]} 31. Ra7 {[%emt 0:01:00]} Rb1 {[%emt 0:03:31]} 32. Ke2 {[%emt 0:01:08]} 1/2-1/2

[Event "2nd Cambridge Open 2024"]
[Site "Cambridge"]
[Date "2024.02.21"]
[Round "5.18"]
[White "McLean, Robert"]
[Black "Abhyuday, Santhosh"]
[Result "1/2-1/2"]
[ECO "B94"]
[WhiteElo "1823"]
[BlackElo "2058"]
[Annotator "NA RC"]
[PlyCount "70"]
[EventDate "2024.02.18"]
[EventType "swiss"]
[EventCountry "ENG"]
[SourceTitle "playchess.com"]
[Source "ChessBase"]
[SourceQuality "1"]
[TimeControl "5400+30"]

1. e4 {[%emt 0:00:02]} c5 {[%emt 0:07:21]} 2. Nf3 {[%emt 0:00:06]} d6 {[%emt 0:00:28]} 3. d4 {[%emt 0:00:06]} cxd4 {[%emt 0:00:05]} 4. Nxd4 {[%emt 0:00:04]} Nf6 {[%emt 0:00:06]} 5. Nc3 {[%emt 0:00:04]} a6 {[%emt 0:00:07]} 6. Bg5 {[%emt 0:00:35]} Nbd7 {[%emt 0:00:06]} 7. Bc4 {[%emt 0:00:16]} Qb6 {[%emt 0:00:13]} 8. Bb3 {[%emt 0:01:36]} e6 {[%emt 0:00:11]} 9. Qd2 {[%emt 0:05:53]} Be7 {[%emt 0:00:27]} 10. O-O-O {[%emt 0:00:48]} Nc5 {[%emt 0:00:07]} 11. f3 {[%emt 0:03:06]} Qc7 {[%emt 0:00:06]} 12. h4 {[%emt 0:02:52]} Bd7 {[%emt 0:00:14]} 13. g4 {[%emt 0:00:43]} b5 {[%emt 0:00:05]} 14. Rhe1 {[%emt 0:02:39]} Rb8 {[%emt 0:00:24]} 15. Nf5 {[%emt 0:07:44]} exf5 {[%emt 0:16:41]} 16. exf5 {[%emt 0:01:16]} Nxb3+ {[%emt 0:06:05]} 17. axb3 {[%emt 0:00:06]} Bc6 {[%emt 0:00:12]} 18. Qxd6 {[%emt 0:05:37]} Qxd6 {[%emt 0:00:56]} 19. Rxd6 {[%emt 0:00:06]} Rc8 {[%emt 0:00:07]} 20. Rxf6 {[%emt 0:00:28]} O-O {[%emt 0:03:48]} 21. Rxc6 {[%emt 0:06:43]} Bxg5+ {[%emt 0:00:09]} 22. hxg5 {[%emt 0:00:02]} Rxc6 {[%emt 0:00:07]} 23. Ne4 {[%emt 0:03:35]} Rfc8 {[%emt 0:02:51]} 24. c3 {[%emt 0:00:18]} h6 {[%emt 0:00:25]} 25. gxh6 {[%emt 0:00:51]} Rxh6 {[%emt 0:00:26]} 26. Kd2 {[%emt 0:01:01]} Rh2+ {[%emt 0:03:36]} 27. Re2 {[%emt 0:00:09]} Rh1 {[%emt 0:00:45]} 28. Ke3 {[%emt 0:03:56]} Rd8 {[%emt 0:00:52]} 29. Rd2 {[%emt 0:07:07]} Re1+ {[%emt 0:02:26]} 30. Kf2 {[%emt 0:00:29]} Rxd2+ {[%emt 0:01:20]} 31. Nxd2 {[%emt 0:00:05]} Rc1 {[%emt 0:00:03]} 32. Ke3 {[%emt 0:02:45]} Rc2 {[%emt 0:00:54]} 33. b4 {[%emt 0:00:51]} Rxb2 {[%emt 0:00:32]} 34. Ne4 {[%emt 0:00:10]} Kf8 {[%emt 0:01:44]} 35. Kd4 {[%emt 0:00:28]} Ke7 {[%emt 0:02:49]} 1/2-1/2

[Event "2nd Cambridge Open 2024"]
[Site "Cambridge"]
[Date "2024.02.21"]
[Round "5.19"]
[White "Denderski, Piotr"]
[Black "Zhang, Junyi"]
[Result "1/2-1/2"]
[ECO "D35"]
[WhiteElo "2137"]
[BlackElo "1655"]
[Annotator "RC"]
[PlyCount "88"]
[EventDate "2024.02.18"]
[EventType "swiss"]
[EventCountry "ENG"]
[SourceTitle "playchess.com"]
[Source "ChessBase"]
[SourceQuality "1"]
[TimeControl "5400+30"]

1. Nf3 {[%emt 0:00:03]} Nf6 {[%emt 0:01:35]} 2. d4 {[%emt 0:00:19]} e6 {[%emt 0:00:06]} 3. c4 {[%emt 0:00:12]} d5 {[%emt 0:00:17]} 4. cxd5 {[%emt 0:00:21]} exd5 {[%emt 0:01:28]} 5. Nc3 {[%emt 0:00:07]} Bd6 {[%emt 0:03:04]} 6. Bg5 {[%emt 0:00:11]} c6 {[%emt 0:02:13]} 7. Qc2 {[%emt 0:00:12]} O-O {[%emt 0:01:57]} 8. e3 {[%emt 0:00:07]} Be6 {[%emt 0:05:49]} 9. Bd3 {[%emt 0:03:45]} h6 {[%emt 0:02:30]} 10. Bh4 {[%emt 0:01:18]} Nbd7 {[%emt 0:03:11]} 11. Bg3 {[%emt 0:00:09]} Qe7 {[%emt 0:01:12]} 12. Bxd6 {[%emt 0:00:44]} Qxd6 {[%emt 0:00:11]} 13. h3 {[%emt 0:00:21]} Qe7 {[%emt 0:00:59]} 14. O-O {[%emt 0:02:37]} Ne8 {[%emt 0:00:35]} 15. Rab1 {[%emt 0:11:08]} Qf6 {[%emt 0:00:50]} 16. Nd2 {[%emt 0:01:05]} Nd6 {[%emt 0:03:42]} 17. b4 {[%emt 0:03:41]} b5 {[%emt 0:05:43]} 18. a4 {[%emt 0:05:31]} a6 {[%emt 0:02:24]} 19. Ra1 {[%emt 0:03:31]} Qe7 {[%emt 0:06:54]} 20. Ra2 {[%emt 0:11:24]} Nc4 {[%emt 0:02:17]} 21. Rb1 {[%emt 0:09:40]} a5 {[%emt 0:10:39]} 22. Bxc4 {[%emt 0:07:56]} bxc4 {[%emt 0:02:33]} 23. bxa5 {[%emt 0:05:24]} Rxa5 {[%emt 0:14:06]} 24. Rb7 {[%emt 0:01:12]} Rb8 {[%emt 0:01:25]} 25. Rab2 {[%emt 0:05:40]} Raa8 {[%emt 0:04:40]} 26. Rxb8+ {[%emt 0:06:53]} Rxb8 {[%emt 0:00:11]} 27. Rxb8+ {[%emt 0:00:11]} Nxb8 {[%emt 0:00:17]} 28. Qb2 {[%emt 0:00:16]} Qc7 {[%emt 0:05:13]} 29. e4 {[%emt 0:03:06]} Nd7 {[%emt 0:02:39]} 30. Qb4 {[%emt 0:01:42]} Qf4 {[%emt 0:01:10]} 31. Ne2 {[%emt 0:01:00]} Qc7 {[%emt 0:03:39]} 32. exd5 {[%emt 0:01:03]} cxd5 {[%emt 0:00:13]} 33. a5 {[%emt 0:00:22]} Qb8 {[%emt 0:02:11]} 34. Qa3 {[%emt 0:01:47]} Qa7 {[%emt 0:02:51]} 35. Nf3 {[%emt 0:01:08]} Nb8 {[%emt 0:03:21]} 36. Qd6 {[%emt 0:01:32]} Nd7 {[%emt 0:02:02]} 37. Qb4 {[%emt 0:01:41]} Qb8 {[%emt 0:01:41]} 38. Qa3 {[%emt 0:04:16]} Qa7 {[%emt 0:02:05]} 39. Nc3 {[%emt 0:00:14]} Qa6 {[%emt 0:00:27]} 40. Qb4 {[%emt 0:00:18]} Nf8 {[%emt 0:01:21]} 41. Qc5 {[%emt 0:01:14]} Qb7 {[%emt 0:00:22]} 42. Qa3 {[%emt 0:04:33]} Bc8 {[%emt 0:00:40]} 43. Qc5 {[%emt 0:01:28]} Be6 {[%emt 0:00:06]} 44. Ne5 {[%emt 0:00:24]} Qb2 {[%emt 0:00:57]} 1/2-1/2

[Event "2nd Cambridge Open 2024"]
[Site "Cambridge"]
[Date "2024.02.21"]
[Round "5.20"]
[White "Ismail, Mohammed Aayan"]
[Black "Ghasi, Ameet K"]
[Result "0-1"]
[ECO "B07"]
[WhiteElo "2115"]
[BlackElo "2509"]
[Annotator "TA"]
[PlyCount "60"]
[EventDate "2024.02.18"]
[EventType "swiss"]
[EventCountry "ENG"]
[SourceTitle "playchess.com"]
[Source "ChessBase"]
[SourceQuality "1"]
[TimeControl "5400+30"]

{[%evp 14,60,26,8,22,19,34,18,22,18,18,21,39,0,31,17,22,-22,0,10,11,14,24,0,14,6,0,0,0,0,8,-60,-58,-60,-61,-69,-69,-58,-59,-85,-79,-520,-518,-710,-699,-788,-589,-1018,-612]} 1. Nf3 {[%emt 0:00:27]} g6 {[%emt 0:01:30]} 2. g3 {[%emt 0:00:39]} Bg7 {[%emt 0:00:11]} 3. Bg2 {[%emt 1:30:54]} d6 {[%emt 0:02:59]} 4. d4 {[%emt 0:00:00]} Nf6 {[%emt 0:00:05]} 5. O-O {[%emt 0:00:00]} O-O {[%emt 0:00:04]} 6. Re1 {[%emt 0:00:00]} Nbd7 {[%emt 0:00:27]} 7. e4 {[%emt 0:00:00]} e5 {[%emt 0:00:03]} 8. Nc3 {[%emt 0:00:00]} b6 {[%emt 0:01:05]} 9. a4 {[%emt 0:00:00][%cal Ba2a4,Ba4a5][%mdl 32]} a6 {[%emt 0:02:33]} 10. Be3 {[%emt 0:00:00]} Bb7 {[%emt 0:02:48] The position is equal.} 11. dxe5 {[%emt 0:00:00]} dxe5 {[%emt 0:04:28]} 12. Nd2 {[%emt 0:00:00]} Re8 {[%emt 0:24:41]} 13. Nb3 {[%emt 0:00:00]} c6 {[%emt 0:07:05]} 14. a5 {[%emt 0:00:00] [#] Hoping for axb6.} b5 {[%emt 0:00:37]} 15. Qd2 {[%emt 0:00:00]} Qc7 {[%emt 0:12:49]} 16. Nc5 {[%emt 0:00:00]} Bf8 {[%emt 0:11:39]} 17. Nxb7 {[%emt 0:00:00]} Qxb7 {[%emt 0:00:09]} 18. Red1 {[%emt 0:00:00]} Nc5 {[%emt 0:02:35][%cal Bd7c5,Bc5e6,Be6d4][%mdl 32]} 19. f3 {[%emt 0:00:00] Prevents Ng4} Ne6 {[%emt 0:00:29]} 20. Qf2 {[%emt 0:00:00]} Rad8 {[%emt 0:00:50]} 21. Bh3 {[%emt 0:00:00]} Nd4 {[%emt 0:01:19]} 22. f4 {[%emt 0:00:00]} ({White should try} 22. Na2 $11) 22... b4 $1 $15 {[%emt 0:05:49]} 23. fxe5 {[%emt 0:00:00]} bxc3 {[%emt 0:00:09]} 24. exf6 {[%emt 0:00:00]} cxb2 {[%emt 0:01:44]} 25. Rab1 {[%emt 0:00:00]} c5 {[%emt 0:03:42]} 26. Bg2 $1 {[%emt 0:00:00]} Qb4 {[%emt 0:02:52] Black is more active.} 27. Bxd4 {[%emt 0:00:00][%mdl 8192] [#] This move loses the game for White.} (27. c4 $17) 27... Rxd4 $19 {[%emt 0:01:51] Black is clearly winning.} 28. Rxd4 {[%emt 0:00:00]} cxd4 {[%emt 0:00:02]} 29. Qf1 {[%emt 0:06:51] White is weak on the dark squares} Re5 {[%emt 0:03:57]} 30. Qxa6 {[%emt 0:01:56]} Rxa5 {[%emt 0:00:26] Weighted Error Value: White=0.78/Black=0.06 (flawless) .  Loses game:     	White=1     	---        Mistake:       	White=1     	---        Inaccurate:     	White=3     	Black=2      OK:         	White=7     	Black=8      Best:        	White=1     	Black=2      Strong:       	White=1     	Black=1} ({Not} 30... Qxa5 31. Qxa5 Rxa5 32. Rxb2 $11) 0-1

[Event "2nd Cambridge Open 2024"]
[Site "Cambridge"]
[Date "2024.02.21"]
[Round "5.21"]
[White "Mihalik, Agoston"]
[Black "Roberson, Peter T"]
[Result "0-1"]
[ECO "C03"]
[WhiteElo "2146"]
[BlackElo "2424"]
[Annotator "TA"]
[PlyCount "130"]
[EventDate "2024.02.18"]
[EventType "swiss"]
[EventCountry "ENG"]
[SourceTitle "playchess.com"]
[Source "ChessBase"]
[SourceQuality "1"]
[TimeControl "5400+30"]

{[%evp 26,130,70,67,89,31,40,24,27,0,9,-112,-110,-115,-108,-109,-112,-105,-107,-117,-117,-112,-114,-113,-98,-119,-110,-124,-122,-125,-129,-133,-104,-115,-91,-123,-105,-140,-134,-137,-114,-203,-169,-181,-145,-192,-142,-160,-159,-147,0,-169,0,-204,-198,-181,-167,-206,-195,-176,-155,-159,-150,-274,-281,-300,-288,-309,-294,-262,-208,-197,-211,-418,-391,-497,-479,-516,-497,-498,-514,-535,-523,-494,-493,-1267,-1292,-1298,-830,-1832,-1220,-1329,-2342,-2800,-2321,-5405,-4883,-29960,-29961,-29973,-29974,-29971,-29971,-29986,-29987,-29987,-29988]} 1. e4 {[%emt 0:00:50]} e6 {[%emt 0:00:06]} 2. d4 {[%emt 0:00:18]} d5 {[%emt 0:00:05]} 3. Nd2 {[%emt 1:30:52]} c5 {[%emt 0:00:05]} 4. Ngf3 {[%emt 0:00:00]} cxd4 {[%emt 0:00:05]} 5. Nxd4 {[%emt 0:00:00]} Ne7 {[%emt 0:00:20]} 6. exd5 {[%emt 0:00:00]} Nxd5 {[%emt 0:00:19]} 7. N2f3 {[%emt 0:00:00]} Be7 {[%emt 0:00:10]} 8. c3 {[%emt 0:00:00]} O-O {[%emt 0:04:04]} 9. Bd3 {[%emt 0:00:00]} b6 {[%emt 0:03:20] 9...Nc6 is becoming the main line. C03: French Tarrasch: Unusual Black 3rd moves.} 10. Qe2 {[%emt 0:00:00]} Nf6 {[%emt 0:14:11]} 11. Bf4 {[%emt 0:00:00]} Bb7 {[%emt 0:00:50]} 12. Rd1 {[%emt 0:00:00]} Nbd7 {[%emt 0:01:24]} 13. O-O {[%emt 0:00:00]} Nc5 $146 {[%emt 0:02:01]} ({Predecessor:} 13... a6 14. Rfe1 Nd5 15. Bg3 Ra7 16. Bb1 Qa8 17. Nxe6 fxe6 18. Qxe6+ Kh8 19. Qxd7 Nf6 {1-0 Godena,M (2405)-Janssen,H (2380) ECI 16th Euwe Memorial 1989 (8)}) 14. Bc2 {[%emt 0:00:00]} Qc8 {[%emt 0:01:01]} 15. Nb5 {[%emt 0:00:00]} ({Better is} 15. Rfe1 $16) 15... Be4 {[%emt 0:20:33]} 16. Bxe4 {[%emt 0:00:00]} Ncxe4 {[%emt 0:00:29]} 17. Rd4 {[%emt 0:00:00]} (17. Nc7 $5 Rb8 $8 18. Rd4 $14) 17... Qb7 {[%emt 0:09:44]} 18. Rfd1 {[%emt 0:00:00]} (18. Re1 $11 {keeps the balance.} Nc5 19. b4) 18... Bc5 $17 {[%emt 0:03:14]} 19. Nd6 {[%emt 0:00:00]} Nxd6 {[%emt 0:00:40]} 20. Bxd6 {[%emt 0:00:00]} Bxd4 {[%emt 0:00:42]} 21. Bxf8 {[%emt 0:00:00]} Bxf2+ {[%emt 0:00:33]} 22. Qxf2 {[%emt 0:00:00]} Rxf8 {[%emt 0:00:30]} 23. c4 {[%emt 0:00:00]} h6 {[%emt 0:04:19]} 24. b3 {[%emt 0:00:00]} Qe4 {[%emt 0:07:14]} 25. Qd4 {[%emt 0:00:00]} Qc2 {[%emt 0:01:06]} 26. Qd2 {[%emt 0:00:00]} Qxd2 {[%emt 0:07:40]} 27. Rxd2 {[%emt 0:00:00]} Rc8 {[%emt 0:00:06]} 28. Ne5 {[%emt 0:00:00]} g5 {[%emt 0:01:03]} 29. Rd4 {[%emt 0:01:49]} Kg7 {[%emt 0:01:17]} 30. a4 {[%emt 0:01:05]} Rc5 {[%emt 0:01:07]} 31. Nd7 {[%emt 0:00:47]} Rc7 {[%emt 0:00:18]} 32. Ne5 {[%emt 0:00:05]} Kf8 {[%emt 0:07:40]} 33. Rd3 {[%emt 0:09:53]} (33. Rd8+ $17 Ke7 34. Rh8) 33... Ke7 {[%emt 0:01:57]} 34. Rf3 {[%emt 0:00:06]} a5 {[%emt 0:04:09]} 35. h3 {[%emt 0:01:33]} (35. g4 $17 {was called for.}) 35... Rc5 {[%emt 0:01:02]} (35... h5 $19 36. Kf1 h4) 36. Nd3 $17 {[%emt 0:00:02]} Rc6 {[%emt 0:02:11]} 37. Ne5 {[%emt 0:00:30]} Rc5 {[%emt 0:00:06]} 38. Nd3 $1 {[%emt 0:00:02]} Rc7 {[%emt 0:00:09]} 39. Ne5 {[%emt 0:00:04]} h5 {[%emt 0:00:04]} 40. Kh2 {[%emt 0:01:06]} g4 {[%emt 0:01:00]} 41. Rf4 {[%emt 0:00:47]} Rc5 {[%emt 0:00:30]} 42. Nd3 {[%emt 0:00:43]} Rg5 {[%emt 0:00:04]} 43. h4 {[%emt 0:00:20]} Rg7 {[%emt 0:00:42]} 44. Kg1 {[%emt 0:00:41]} (44. c5 $17 {is a better defense.}) 44... Nd7 $19 {[%emt 0:00:13]} 45. Re4 {[%emt 0:00:44]} f5 {[%emt 0:00:58]} 46. Re3 {[%emt 0:00:05]} Nc5 {[%emt 0:00:34]} 47. Nf4 {[%emt 0:00:31]} Kf7 {[%emt 0:01:28]} 48. g3 {[%emt 0:01:01]} Rh7 {[%emt 0:01:21]} 49. Kg2 $2 {[%emt 0:00:01]} (49. Re2) 49... Rh8 $19 {[%emt 0:00:22]} 50. Kh2 {[%emt 0:00:08]} Rd8 {[%emt 0:00:41]} 51. Nxh5 {[%emt 0:00:03]} Rd2+ {[%emt 0:00:23]} 52. Kg1 {[%emt 0:00:29]} Rb2 {[%emt 0:01:16]} 53. Nf4 {[%emt 0:00:09]} Rxb3 {[%emt 0:00:40]} 54. Rxb3 {[%emt 0:00:04]} Nxb3 {[%emt 0:00:02]} 55. Nd3 {[%emt 0:02:06]} (55. Ne2 $142 Nd2 56. Kf2) 55... Nc5 $19 {[%emt 0:00:27]} 56. Nb2 {[%emt 0:00:35]} e5 {[%emt 0:00:17]} 57. Kf2 {[%emt 0:00:13]} Kg6 {[%emt 0:00:27]} 58. Kg2 {[%emt 0:00:08]} f4 {[%emt 0:00:22]} (58... Kh5 $142 59. Kf1 f4) 59. Kh2 {[%emt 0:00:57]} f3 {[%emt 0:01:13]} 60. Nd1 {[%emt 0:00:08]} Nxa4 {[%emt 0:00:16]} 61. Ne3 {[%emt 0:00:04]} Nb2 {[%emt 0:00:27]} 62. Nxg4 {[%emt 0:01:19]} Nxc4 {[%emt 0:00:02]} 63. Nf2 {[%emt 0:00:03]} a4 {[%emt 0:00:20]} 64. g4 {[%emt 0:00:14]} a3 {[%emt 0:00:11]} 65. h5+ {[%emt 0:00:03]} Kg7 {[%emt 0:00:13]} 0-1